Workbook

Sheet 2 пон
B1: Основное (организованное меню) и пищевая ценность приготовляемых блюд для обучающихся 7-11 лет (лист 6)
B2: Рацион: ШК 7-11 лет | F2: День: | G2: понедельник
A3: МОБУ СОШ с.Рятамак | E3: Неделя: | G3: 2 | J3: Возраст: | L3: 7-11 лет
A4: Раздел пищи | B4: № рец. | C4: Прием пищи, наименование блюда | E4: Масса порции | F4: Пищевые вещества (г) | I4: Энерге- тическая ценность (ккал) | J4: Витамины (мг) | N4: Минеральные вещества (мг)
F5: Б | G5: Ж | H5: У | J5: B1 | K5: C | L5: A | M5: E | N5: Ca | O5: P | P5: Mg | Q5: Fe
B6: 1 | C6: 2 | E6: 3 | F6: 4 | G6: 5 | H6: 6 | I6: 7 | J6: 8 | K6: 9 | L6: 10 | M6: 11 | N6: 12 | O6: 13 | P6: 14 | Q6: 15
A7: Завтрак
A8: гор. блюдо | B8: 211.08 | C8: Макаронные изделия отварные с сыром или запеченные | E8: 150/5/30 | F8: 6.15 | G8: 4.83 | H8: 38.8 | I8: 214.7 | J8: 0.08 | K8: 0.11 | L8: 80.7 | M8: 0.82 | N8: 163.3 | O8: 131.11 | P8: 15.41 | Q8: 0.85
A9: гор. напиток | B9: 283 | C9: Чай с сахаром | E9: 200 | H9: 9.98 | I9: 39.9 | K9: 2,8 | L9: 0,14 | M9: 0,01 | N9: 3,1 | O9: 1,54 | P9: 0,84 | Q9: 0,07
A10: сок | B10: 86.12 | C10: Сок | E10: 200 | F10: 1 | G10: 0.2 | H10: 20.2 | I10: 92 | J10: 0.04 | K10: 12 | L10: 6 | M10: 0.24 | N10: 19.2 | O10: 13.2 | P10: 10.8 | Q10: 2.64
A11: закуска | B11: 1.5 | C11: Бутерброд с сыром | E11: 2012-10-30 | F11: 5.03 | G11: 2.96 | H11: 16.5 | I11: 113 | J11: 0.14 | M11: 0.6 | N11: 8 | O11: 26 | P11: 5.6 | Q11: 1
A12: Итого за завтрак суммарная масса порции : 625 | F12: =F8+F9+F10+F11 -> 12.18 | G12: =G8+G9+G10+G11 -> 7.99 | H12: 85.48 | I12: 459.6 | J12: 0.26 | K12: 14.91 | L12: 86.84 | M12: 1.67 | N12: 193.6 | O12: 171.85 | P12: 32.65 | Q12: 4.56
A13: Обед
A14: 1 блюдо | B14: 58 | C14: Суп картофельный | E14: 250 | F14: 2.4 | G14: 2.5 | H14: 18.1 | I14: 107 | J14: 0.2 | K14: 9.32 | L14: 209.52 | M14: 1.59 | N14: 29.42 | O14: 69.78 | P14: 28.7 | Q14: 1.66
A15: 2 блюдо | B15: 445.37 | C15: Котлеты мясные с томатным | E15: 60/30 | F15: 9.87 | G15: 11.79 | H15: 8.34 | I15: 178.98 | J15: 0.05 | K15: 1.17 | N15: 21.07 | P15: 21.77 | Q15: 2
A16: гарнир | B16: 610.03 | C16: Рис | D16: пропущенный | E16: 150 | F16: 3.79 | G16: 6.54 | H16: 38.96 | I16: 208
A17: напиток | B17: 293 | C17: Компот из смеси сухофруктов | E17: 200 | F17: 0.44 | G17: 0.09 | H17: 32.92 | I17: 128.6 | J17: 0.04 | L17: 37.35 | M17: 0.29 | N17: 11.71 | O17: 81.24 | P17: 26.58 | Q17: 0.59
A18: хлеб | B18: 1.1 | C18: Хлеб пшеничный обогащенный витаминами для детского питания | E18: 30 | F18: 2.4 | G18: 0.3 | H18: 16.5 | I18: 78 | J18: 0.01 | K18: 4 | L18: 2 | M18: 0.08 | N18: 6.85 | O18: 4.4 | P18: 3.6 | Q18: 0.93
A19: хлеб | B19: 1.2 | C19: Хлеб ржано-пшеничный | E19: 30 | F19: 2.4 | G19: 0.3 | H19: 13.8 | I19: 66 | J19: 0,1 | M19: 0,45 | N19: 6 | O19: 19,5 | P19: 4,2 | Q19: 0,75
A20: Итого за обед суммарная масса порции: 750 | F20: 21.30 | G20: 21.52 | H20: 128.62 | I20: 766.58 | J20: =J14+J15+J17+J18+J19 -> 0.40 | K20: 14.49 | L20: 248.87 | M20: 2.41 | N20: 75.05 | O20: 174.92 | P20: 84.85 | Q20: 5.93
A21: Итого за день | F21: =F12+F20 -> 33.48 | G21: =G12+G20 -> 29.51 | H21: =H12+H20 -> 214.10 | I21: =I12+I20 -> 1226.18 | J21: =J12+J20 -> 0.66 | K21: =K12+K20 -> 29.40 | L21: =L12+L20 -> 335.71 | M21: =M12+M20 -> 4.08 | N21: =N12+N20 -> 268.65 | O21: =O12+O20 -> 346.77 | P21: =P12+P20 -> 117.50 | Q21: =Q12+Q20 -> 10.49
